{"text_format":"1","workbook":"xlsx","n_sheets":4,"sheets":["★入力マニュアル★","賞与支払届","提出者記入欄データ入力","被保険者データ入力"],"not_rendered":{"charts":0,"images":8,"macros":1,"external_links":0,"defined_names":3,"comments":0,"pivot_tables":0},"unopened":[],"bounds":{"document_bytes":16777216,"sheet_cells":100000,"rows_first":2000,"rows_last":500,"rows_between":2000,"halvings":0,"cell_chars":16384,"cell_head_chars":4096},"cells_cut":0,"cells_raw":0,"read":"whole","date_system":"1900"}

{"sheet":"★入力マニュアル★","index":0,"n_rows":131,"n_cols":2,"rows_kept":131,"cut":false,"hidden":false,"merged":[[0,0,0,43],[130,0,131,41]]}
["賞与支払届（Excel)入力マニュアル"]
[]
["①","提出者記入欄データ入力シートを選択"]
[]
[]
[]
[]
[]
[]
[]
["②","提出年月日"]
[null,"事業所整理記号"]
[null,"事業所郵便番号"]
[null,"事業所所在地"]
[null,"事業所名称"]
[null,"事業所氏名"]
[null,"電話番号"]
[null,"健康保険の記号"]
[null,"を入力"]
[]
[null,"（社会保険労務士が入力する場合は、"]
[null," 社会保険労務士記載欄を入力）"]
[]
[]
[]
[]
[]
[]
[]
[]
[]
[]
[]
[]
[]
[]
[]
[]
[]
[]
[]
[null,"賞与支払届シートに入力内容が反映されます。"]
[]
[]
[]
[]
[]
[]
[]
[]
[]
[]
[]
[]
[]
[]
[]
[]
[]
[]
[]
[]
[]
[]
[]
["③","提出者記入欄データ入力シートを選択"]
[]
[]
[]
[]
["④","賞与支払日"]
[null,"健康保険被保険者等番号"]
[null,"被保険者氏名"]
[null,"生年月日"]
[null,"賞与支払額（通貨）"]
[null,"を入力"]
[null,"（賞与支払額（現物）は"]
[null," 支給ある場合のみ入力）"]
[]
[]
[]
[]
[]
["⑤","賞与支払日が異なる場合は入力"]
[]
["⑥","※二以上勤務者"]
[null,"※同一月内賞与支給者"]
[null,"の場合プルダウンより●を選択"]
[]
[]
["⑦","同一内賞与支給ある場合は、初回支給日も入力"]
[]
[]
[]
[]
[]
[]
[]
[]
[]
[]
[]
[]
[]
[]
["⑧","賞与支払届シートの印刷ボタンをクリック（入力した分が自動印刷されます。）"]
[]
[]
[]
[]
[]
[]
[]
[]
[]
[]
[]
[]
[]
[]
[]
[]
[]
[]
[]
[]
[]
[]
[]
[]
[" 11名以上はシートに反映されていませんが、自動で印刷されます。（300名まで入力可）"]

{"sheet":"賞与支払届","index":1,"n_rows":158,"n_cols":99,"rows_kept":158,"cut":false,"hidden":false,"merged":[[89,58,90,59],[91,60,92,70],[93,62,94,69],[93,79,94,79],[101,60,102,70],[103,62,104,69],[103,79,104,79],[93,70,94,78],[99,58,100,59],[103,70,104,78],[56,58,57,59],[66,60,70,81],[66,58,67,59],[76,60,80,81],[76,58,77,59],[56,60,60,70],[43,5,46,21],[56,5,59,21],[66,5,69,21],[76,5,79,21],[73,70,74,78],[73,79,74,79],[56,45,59,57],[56,22,59,44],[51,5,54,21],[60,5,61,21],[51,22,54,44],[71,60,72,70],[73,62,74,69],[80,45,81,56],[70,45,71,56],[63,62,64,69],[63,70,64,78],[63,79,64,79],[83,79,84,79],[86,5,89,21],[146,5,149,21],[136,5,139,21],[126,5,129,21],[116,5,119,21],[106,5,109,21],[96,5,99,21],[122,5,124,21],[132,5,134,21],[142,5,144,21],[112,5,114,21],[110,5,111,21],[86,58,87,59],[96,58,97,59],[116,58,117,59],[126,58,127,59],[136,58,137,59],[146,58,147,59],[86,60,90,81],[96,60,100,81],[106,60,110,81],[106,58,107,59],[116,60,120,81],[151,60,152,70],[153,62,154,69],[153,79,154,79],[143,70,144,78],[153,70,154,78],[113,79,114,79],[121,60,122,70],[123,62,124,69],[123,79,124,79],[131,60,132,70],[133,62,134,69],[133,79,134,79],[113,70,114,78],[123,70,124,78],[133,70,134,78],[141,60,142,70],[143,62,144,69],[126,60,130,81],[136,60,140,81],[146,60,150,81],[62,5,64,21],[72,5,74,21],[82,5,84,21],[79,58,80,59],[66,45,69,57],[63,22,64,32],[63,33,64,44],[76,45,79,57],[76,22,79,44],[60,22,62,26],[60,33,62,37],[82,45,84,53],[72,45,74,53],[60,45,61,56],[59,58,60,59],[83,70,84,78],[63,54,64,56],[63,57,64,57],[73,54,74,56],[73,57,74,57],[83,54,84,56],[83,57,84,57],[62,45,64,53],[61,60,62,70],[81,60,82,70],[83,62,84,69],[10,2,12,4],[10,5,12,19],[14,5,28,10],[18,11,23,40],[24,11,28,40],[43,22,46,44],[43,45,46,57],[29,5,33,10],[29,11,33,40],[33,44,35,63],[34,11,39,32],[35,33,41,40],[36,44,37,63],[16,11,17,12],[16,13,17,28],[40,11,41,30],[38,44,39,76],[40,44,41,76],[40,5,41,10],[34,5,39,10],[43,58,49,81],[93,57,94,57],[103,54,104,56],[66,22,69,44],[70,33,72,37],[73,33,74,44],[73,22,74,32],[80,5,81,21],[70,5,71,21],[70,22,72,26],[102,5,104,21],[92,5,94,21],[90,5,91,21],[100,5,101,21],[86,45,89,57],[86,22,89,44],[90,22,92,26],[90,33,92,37],[103,33,104,44],[103,22,104,32],[100,33,102,37],[103,57,104,57],[100,22,102,26],[100,45,101,56],[102,45,104,53],[2,57,4,62],[2,63,4,67],[2,68,4,72],[2,73,4,77],[2,23,5,48],[2,14,5,22],[38,78,40,80],[47,5,49,21],[47,22,49,44],[47,45,49,57],[2,51,4,56],[14,43,17,54],[20,43,22,54],[2,78,4,82],[6,15,8,22],[6,26,8,47],[96,45,99,57],[119,58,120,59],[109,58,110,59],[133,22,134,32],[133,33,134,44],[129,58,130,59],[130,5,131,21],[120,22,122,26],[120,33,122,37],[123,33,124,44],[123,22,124,32],[126,22,129,44],[110,22,112,26],[110,33,112,37],[106,22,109,44],[123,54,124,56],[123,57,124,57],[133,54,134,56],[133,57,134,57],[126,45,129,57],[120,45,121,56],[122,45,124,53],[139,58,140,59],[130,22,132,26],[130,33,132,37],[143,33,144,44],[143,22,144,32],[153,22,154,32],[153,33,154,44],[146,45,149,57],[130,45,131,56],[132,45,134,53],[149,58,150,59],[143,54,144,56],[143,57,144,57],[150,5,151,21],[140,22,142,26],[140,33,142,37],[146,22,149,44],[152,5,154,21],[150,22,152,26],[150,33,152,37],[136,45,139,57],[153,54,154,56],[153,57,154,57],[150,45,151,56],[152,45,154,53],[140,45,141,56],[142,45,144,53],[140,5,141,21],[136,22,139,44],[157,62,159,71],[111,60,112,70],[113,62,114,69],[143,79,144,79],[80,22,82,26],[80,33,82,37],[120,5,121,21],[93,22,94,32],[93,33,94,44],[83,33,84,44],[83,22,84,32],[90,45,91,56],[112,45,114,53],[92,45,94,53],[93,54,94,56],[106,45,109,57],[116,45,119,57],[116,22,119,44],[96,22,99,44],[113,22,114,32],[113,33,114,44],[113,54,114,56],[113,57,114,57],[110,45,111,56]]}
[1,null,null,null,null,null,null,null,null,null,null,null,null,null,null,null,null,null,null,null,null,null,null,null,null,null,null,null,null,null,null,null,null,null,null,null,null,null,null,null,null,null,null,null,null,null,null,null,null,null,null,null,null,null,null,null,null,null,null,null,null,null,null,null,null,null,null,null,null,null,null,null,null,null,null,null,null,null,null,null,null,null,null,1,null,null,null,null,null,null,null,null,null,null,null,null,null,1,{"$f":"被保険者データ入力!P4","v":0}]
[]
[null,null,null,null,null,null,null,null,null,null,null,null,null,null,"健康保険",null,null,null,null,null,null,null,null,"被保険者賞与支払届",null,null,null,null,null,null,null,null,null,null,null,null,null,null,null,null,null,null,null,null,null,null,null,null,null,null,null,"常務理事",null,null,null,null,null,"事務(局)長",null,null,null,null,null,"部　長",null,null,null,null,"課　長",null,null,null,null,"課長補佐",null,null,null,null,"担当者"]
[]
[]
[]
[]
[]
[]
[]
[null,null,null,null,null,{"$f":"IF(提出者記入欄データ入力!B1=\"\",\"\",提出者記入欄データ入力!B1)","v":""}]
[]
[]
[]
[null,null,null,null,null,"事業所\n所在地",null,null,null,null,null,null,null,null,null,null,null,null,null,null,null,null,null,null,null,null,null,null,null,null,null,null,null,null,null,null,null,null,null,null,null,null,null,"健康保険の記号"]
[]
[null,null,null,null,null,null,null,null,null,null,null,"〒",null,{"$f":"IF(提出者記入欄データ入力!C2=\"\",\"\",提出者記入欄データ入力!C2)","v":""}]
[]
[null,null,null,null,null,null,null,null,null,null,null,{"$f":"IF(提出者記入欄データ入力!B3=\"\",\"\",提出者記入欄データ入力!B3)","v":""}]
[]
[null,null,null,null,null,null,null,null,null,null,null,null,null,null,null,null,null,null,null,null,null,null,null,null,null,null,null,null,null,null,null,null,null,null,null,null,null,null,null,null,null,null,null,{"$f":"IF(提出者記入欄データ入力!B10=\"\",\"\",提出者記入欄データ入力!B10)","v":""}]
[]
[]
[]
[null,null,null,null,null,null,null,null,null,null,null,{"$f":"IF(提出者記入欄データ入力!B4=\"\",\"\",提出者記入欄データ入力!B4)","v":""}]
[]
[]
[]
[]
[null,null,null,null,null,"事業所\n名　称",null,null,null,null,null,{"$f":"IF(提出者記入欄データ入力!B5=\"\",\"\",提出者記入欄データ入力!B5)","v":""}]
[]
[]
[]
[null,null,null,null,null,null,null,null,null,null,null,null,null,null,null,null,null,null,null,null,null,null,null,null,null,null,null,null,null,null,null,null,null,null,null,null,null,null,null,null,null,null,null,null,"社会保険労務士記載欄"]
[null,null,null,null,null,"事業主\n氏　名",null,null,null,null,null,{"$f":"IF(提出者記入欄データ入力!B6=\"\",\"\",提出者記入欄データ入力!B6)","v":""}]
[]
[null,null,null,null,null,null,null,null,null,null,null,null,null,null,null,null,null,null,null,null,null,null,null,null,null,null,null,null,null,null,null,null,null,null,null,null,null,null,null,null,null,null,null,null,"　　氏　　名　　等"]
[]
[null,null,null,null,null,null,null,null,null,null,null,null,null,null,null,null,null,null,null,null,null,null,null,null,null,null,null,null,null,null,null,null,null,null,null,null,null,null,null,null,null,null,null,null,{"$f":"IF(提出者記入欄データ入力!B8=\"\",\"\",提出者記入欄データ入力!B8)","v":""}]
[]
[null,null,null,null,null,"電話番号",null,null,null,null,null,{"$f":"IF(提出者記入欄データ入力!B7=\"\",\"\",提出者記入欄データ入力!B7)","v":""},null,null,null,null,null,null,null,null,null,null,null,null,null,null,null,null,null,null,null,null,null,null,null,null,null,null,null,null,null,null,null,null,{"$f":"IF(提出者記入欄データ入力!B9=\"\",\"\",提出者記入欄データ入力!B9)","v":""}]
[]
[]
[null,null,null,null,null,"①　健康保険被保険者等番号",null,null,null,null,null,null,null,null,null,null,null,null,null,null,null,null,"②　被保険者氏名",null,null,null,null,null,null,null,null,null,null,null,null,null,null,null,null,null,null,null,null,null,null,"③　生年月日",null,null,null,null,null,null,null,null,null,null,null,null,"⑦　備考"]
[]
[]
[]
[null,null,null,null,null,"④　賞与支払年月日",null,null,null,null,null,null,null,null,null,null,null,null,null,null,null,null,"⑤　賞与支払額",null,null,null,null,null,null,null,null,null,null,null,null,null,null,null,null,null,null,null,null,null,null,"⑥　賞与額（千円未満は切捨て）"]
[]
[]
[]
[null,null,null,null,null,"④　賞与支払年月日（共通）",null,null,null,null,null,null,null,null,null,null,null,null,null,null,null,null,{"$f":"IF((被保険者データ入力!F1)=\"\",\"\",被保険者データ入力!F1)","v":""}]
[]
[]
[]
[]
[null,null,null,null,null,{"$f":"IF(A1=1,被保険者データ入力!E4,IF(A1=2,被保険者データ入力!E14,IF(A1=3,被保険者データ入力!E24,IF(A1=4,被保険者データ入力!E34,IF(A1=5,被保険者データ入力!E44,IF(A1=6,被保険者データ入力!E54,IF(A1=7,被保険者データ入力!E64,IF(A1=8,被保険者データ入力!E74,IF(A1=9,被保険者データ入力!E84,IF(A1=10,被保険者データ入力!E94,IF(A1=11,被保険者データ入力!E104,IF(A1=12,被保険者データ入力!E114,IF(A1=13,被保険者データ入力!E124,IF(A1=14,被保険者データ入力!E134,IF(A1=15,被保険者データ入力!E144,IF(A1=16,被保険者データ入力!E154,IF(A1=17,被保険者データ入力!E164,IF(A1=18,被保険者データ入力!E174,IF(A1=19,被保険者データ入力!E184,IF(A1=20,被保険者データ入力!E194,IF(A1=21,被保険者データ入力!E204,IF(A1=22,被保険者データ入力!E214,IF(A1=13,被保険者データ入力!E224,IF(A1=24,被保険者データ入力!E234,IF(A1=25,被保険者データ入力!E244,IF(A1=26,被保険者データ入力!E254,IF(A1=27,被保険者データ入力!E264,IF(A1=28,被保険者データ入力!E274,IF(A1=29,被保険者データ入力!E284,IF(A1=30,被保険者データ入力!E294,\"\"))))))))))))))))))))))))))))))","v":0},null,null,null,null,null,null,null,null,null,null,null,null,null,null,null,null,{"$f":"IF(F57=0,\"\",VLOOKUP(F57,被保険者データ入力!E:J,2,0))","v":""},null,null,null,null,null,null,null,null,null,null,null,null,null,null,null,null,null,null,null,null,null,null,{"$f":"IF(F57=0,\"\",IF(VLOOKUP(F57,被保険者データ入力!E:J,3,0)=\"\",\"\",(VLOOKUP(F57,被保険者データ入力!E:J,3,0))))","v":""},null,null,null,null,null,null,null,null,null,null,null,null,"⑦",null,{"$f":"IF(F57=0,\"\",VLOOKUP(F57,被保険者データ入力!E:S,14,0))","v":""}]
[]
[]
[]
[null,null,null,null,null,"④※上記「賞与支払年月日（共通）」と同じ場合は記入不要です。",null,null,null,null,null,null,null,null,null,null,null,null,null,null,null,null,"⑤  ㋐(通貨)",null,null,null,null,null,null,null,null,null,null," ㋑(現物)",null,null,null,null,null,null,null,null,null,null,null,"⑥(合計㋐+㋑) 千円未満は切捨て"]
[null,null,null,null,null,null,null,null,null,null,null,null,null,null,null,null,null,null,null,null,null,null,null,null,null,null,null,null,null,null,null,null,null,null,null,null,null,null,null,null,null,null,null,null,null,null,null,null,null,null,null,null,null,null,null,null,null,null,null,null,{"$f":"IF(F57=0,\"\",VLOOKUP(F57,被保険者データ入力!E:S,15,0))","v":""}]
[null,null,null,null,null,{"$f":"IF(F57=0,\"\",IF(VLOOKUP(F57,被保険者データ入力!E:O,7,0)=\"\",\"\",VLOOKUP(F57,被保険者データ入力!E:O,7,0)))","v":""},null,null,null,null,null,null,null,null,null,null,null,null,null,null,null,null,null,null,null,null,null,null,null,null,null,null,null,null,null,null,null,null,null,null,null,null,null,null,null,{"$f":"IF(F57=0,\"\",VLOOKUP(F57,被保険者データ入力!E:W,18,0))","v":""}]
[null,null,null,null,null,null,null,null,null,null,null,null,null,null,null,null,null,null,null,null,null,null,{"$f":"IF(F57=0,\"\",VLOOKUP(F57,被保険者データ入力!E:J,4,0))","v":""},null,null,null,null,null,null,null,null,null,null,{"$f":"IF(F57=0,\"\",VLOOKUP(F57,被保険者データ入力!E:J,5,0))","v":""},null,null,null,null,null,null,null,null,null,null,null,null,null,null,null,null,null,null,null,null,",000",null,null,"円",null,null,null,null,{"$f":"IF(F57=0,\"\",IF(VLOOKUP(F57,被保険者データ入力!E:U,16,0)=\"\",\"\",VLOOKUP(F57,被保険者データ入力!E:U,16,0)))","v":""},null,null,null,null,null,null,null,{"$f":"IF(F57=0,\"\",IF(VLOOKUP(F57,被保険者データ入力!E:U,11,0)=\"\",\"\",VLOOKUP(F57,被保険者データ入力!E:U,11,0)))","v":""},null,null,null,null,null,null,null,null,{"$f":"IF(F57=0,\"\",IF(VLOOKUP(F57,被保険者データ入力!E:U,11,0)=\"\",\"\",\")\"))","v":""}]
[]
[]
[null,null,null,null,null,{"$f":"IF(A1=1,被保険者データ入力!E5,IF(A1=2,被保険者データ入力!E15,IF(A1=3,被保険者データ入力!E25,IF(A1=4,被保険者データ入力!E35,IF(A1=5,被保険者データ入力!E45,IF(A1=6,被保険者データ入力!E55,IF(A1=7,被保険者データ入力!E65,IF(A1=8,被保険者データ入力!E75,IF(A1=9,被保険者データ入力!E85,IF(A1=10,被保険者データ入力!E95,IF(A1=11,被保険者データ入力!E105,IF(A1=12,被保険者データ入力!E115,IF(A1=13,被保険者データ入力!E125,IF(A1=14,被保険者データ入力!E135,IF(A1=15,被保険者データ入力!E145,IF(A1=16,被保険者データ入力!E155,IF(A1=17,被保険者データ入力!E165,IF(A1=18,被保険者データ入力!E175,IF(A1=19,被保険者データ入力!E185,IF(A1=20,被保険者データ入力!E195,IF(A1=21,被保険者データ入力!E205,IF(A1=22,被保険者データ入力!E215,IF(A1=23,被保険者データ入力!E225,IF(A1=24,被保険者データ入力!E235,IF(A1=25,被保険者データ入力!E245,IF(A1=26,被保険者データ入力!E255,IF(A1=27,被保険者データ入力!E265,IF(A1=28,被保険者データ入力!E275,IF(A1=29,被保険者データ入力!E285,IF(A1=30,被保険者データ入力!E295,\"\"))))))))))))))))))))))))))))))","v":0},null,null,null,null,null,null,null,null,null,null,null,null,null,null,null,null,{"$f":"IF(F67=0,\"\",VLOOKUP(F67,被保険者データ入力!E:J,2,0))","v":""},null,null,null,null,null,null,null,null,null,null,null,null,null,null,null,null,null,null,null,null,null,null,{"$f":"IF(F67=0,\"\",IF(VLOOKUP(F67,被保険者データ入力!E:J,3,0)=\"\",\"\",(VLOOKUP(F67,被保険者データ入力!E:J,3,0))))","v":""},null,null,null,null,null,null,null,null,null,null,null,null,"⑦",null,{"$f":"IF(F67=0,\"\",VLOOKUP(F67,被保険者データ入力!E:S,14,0))","v":""}]
[]
[]
[]
[null,null,null,null,null,"④※上記「賞与支払年月日（共通）」と同じ場合は記入不要です。",null,null,null,null,null,null,null,null,null,null,null,null,null,null,null,null,"⑤  ㋐(通貨)",null,null,null,null,null,null,null,null,null,null," ㋑(現物)",null,null,null,null,null,null,null,null,null,null,null,"⑥(合計㋐+㋑) 千円未満は切捨て"]
[null,null,null,null,null,null,null,null,null,null,null,null,null,null,null,null,null,null,null,null,null,null,null,null,null,null,null,null,null,null,null,null,null,null,null,null,null,null,null,null,null,null,null,null,null,null,null,null,null,null,null,null,null,null,null,null,null,null,null,null,{"$f":"IF(F67=0,\"\",VLOOKUP(F67,被保険者データ入力!E:S,15,0))","v":""}]
[null,null,null,null,null,{"$f":"IF(F67=0,\"\",IF(VLOOKUP(F67,被保険者データ入力!E:O,7,0)=\"\",\"\",VLOOKUP(F67,被保険者データ入力!E:O,7,0)))","v":""},null,null,null,null,null,null,null,null,null,null,null,null,null,null,null,null,null,null,null,null,null,null,null,null,null,null,null,null,null,null,null,null,null,null,null,null,null,null,null,{"$f":"IF(F67=0,\"\",VLOOKUP(F67,被保険者データ入力!E:W,18,0))","v":""}]
[null,null,null,null,null,null,null,null,null,null,null,null,null,null,null,null,null,null,null,null,null,null,{"$f":"IF(F67=0,\"\",VLOOKUP(F67,被保険者データ入力!E:J,4,0))","v":""},null,null,null,null,null,null,null,null,null,null,{"$f":"IF(F67=0,\"\",VLOOKUP(F67,被保険者データ入力!E:J,5,0))","v":""},null,null,null,null,null,null,null,null,null,null,null,null,null,null,null,null,null,null,null,null,",000",null,null,"円",null,null,null,null,{"$f":"IF(F67=0,\"\",IF(VLOOKUP(F67,被保険者データ入力!E:U,16,0)=\"\",\"\",VLOOKUP(F67,被保険者データ入力!E:U,16,0)))","v":""},null,null,null,null,null,null,null,{"$f":"IF(F67=0,\"\",IF(VLOOKUP(F67,被保険者データ入力!E:U,11,0)=\"\",\"\",VLOOKUP(F67,被保険者データ入力!E:U,11,0)))","v":""},null,null,null,null,null,null,null,null,{"$f":"IF(F67=0,\"\",IF(VLOOKUP(F67,被保険者データ入力!E:U,11,0)=\"\",\"\",\")\"))","v":""}]
[]
[]
[null,null,null,null,null,{"$f":"IF(A1=1,被保険者データ入力!E6,IF(A1=2,被保険者データ入力!E16,IF(A1=3,被保険者データ入力!E26,IF(A1=4,被保険者データ入力!E36,IF(A1=5,被保険者データ入力!E46,IF(A1=6,被保険者データ入力!E56,IF(A1=7,被保険者データ入力!E66,IF(A1=8,被保険者データ入力!E76,IF(A1=9,被保険者データ入力!E86,IF(A1=10,被保険者データ入力!E96,IF(A1=11,被保険者データ入力!E106,IF(A1=12,被保険者データ入力!E116,IF(A1=13,被保険者データ入力!E126,IF(A1=14,被保険者データ入力!E136,IF(A1=15,被保険者データ入力!E146,IF(A1=16,被保険者データ入力!E156,IF(A1=17,被保険者データ入力!E166,IF(A1=18,被保険者データ入力!E176,IF(A1=19,被保険者データ入力!E186,IF(A1=20,被保険者データ入力!E196,IF(A1=21,被保険者データ入力!E206,IF(A1=22,被保険者データ入力!E216,IF(A1=23,被保険者データ入力!E226,IF(A1=24,被保険者データ入力!E236,IF(A1=25,被保険者データ入力!E246,IF(A1=26,被保険者データ入力!E256,IF(A1=27,被保険者データ入力!E266,IF(A1=28,被保険者データ入力!E276,IF(A1=29,被保険者データ入力!E286,IF(A1=30,被保険者データ入力!E296,\"\"))))))))))))))))))))))))))))))","v":0},null,null,null,null,null,null,null,null,null,null,null,null,null,null,null,null,{"$f":"IF(F77=0,\"\",VLOOKUP(F77,被保険者データ入力!E:J,2,0))","v":""},null,null,null,null,null,null,null,null,null,null,null,null,null,null,null,null,null,null,null,null,null,null,{"$f":"IF(F77=0,\"\",IF(VLOOKUP(F77,被保険者データ入力!E:J,3,0)=\"\",\"\",(VLOOKUP(F77,被保険者データ入力!E:J,3,0))))","v":""},null,null,null,null,null,null,null,null,null,null,null,null,"⑦",null,{"$f":"IF(F77=0,\"\",VLOOKUP(F77,被保険者データ入力!E:S,14,0))","v":""}]
[]
[]
[]
[null,null,null,null,null,"④※上記「賞与支払年月日（共通）」と同じ場合は記入不要です。",null,null,null,null,null,null,null,null,null,null,null,null,null,null,null,null,"⑤  ㋐(通貨)",null,null,null,null,null,null,null,null,null,null,"　㋑(現物)",null,null,null,null,null,null,null,null,null,null,null,"⑥(合計㋐+㋑) 千円未満は切捨て"]
[null,null,null,null,null,null,null,null,null,null,null,null,null,null,null,null,null,null,null,null,null,null,null,null,null,null,null,null,null,null,null,null,null,null,null,null,null,null,null,null,null,null,null,null,null,null,null,null,null,null,null,null,null,null,null,null,null,null,null,null,{"$f":"IF(F77=0,\"\",VLOOKUP(F77,被保険者データ入力!E:S,15,0))","v":""}]
[null,null,null,null,null,{"$f":"IF(F77=0,\"\",IF(VLOOKUP(F77,被保険者データ入力!E:O,7,0)=\"\",\"\",VLOOKUP(F77,被保険者データ入力!E:O,7,0)))","v":""},null,null,null,null,null,null,null,null,null,null,null,null,null,null,null,null,null,null,null,null,null,null,null,null,null,null,null,null,null,null,null,null,null,null,null,null,null,null,null,{"$f":"IF(F77=0,\"\",VLOOKUP(F77,被保険者データ入力!E:W,18,0))","v":""}]
[null,null,null,null,null,null,null,null,null,null,null,null,null,null,null,null,null,null,null,null,null,null,{"$f":"IF(F77=0,\"\",VLOOKUP(F77,被保険者データ入力!E:J,4,0))","v":""},null,null,null,null,null,null,null,null,null,null,{"$f":"IF(F77=0,\"\",VLOOKUP(F77,被保険者データ入力!E:J,5,0))","v":""},null,null,null,null,null,null,null,null,null,null,null,null,null,null,null,null,null,null,null,null,",000",null,null,"円",null,null,null,null,{"$f":"IF(F77=0,\"\",IF(VLOOKUP(F77,被保険者データ入力!E:U,16,0)=\"\",\"\",VLOOKUP(F77,被保険者データ入力!E:U,16,0)))","v":""},null,null,null,null,null,null,null,{"$f":"IF(F77=0,\"\",IF(VLOOKUP(F77,被保険者データ入力!E:U,11,0)=\"\",\"\",VLOOKUP(F77,被保険者データ入力!E:U,11,0)))","v":""},null,null,null,null,null,null,null,null,{"$f":"IF(F77=0,\"\",IF(VLOOKUP(F77,被保険者データ入力!E:U,11,0)=\"\",\"\",\")\"))","v":""}]
[]
[]
[null,null,null,null,null,{"$f":"IF(A1=1,被保険者データ入力!E7,IF(A1=2,被保険者データ入力!E17,IF(A1=3,被保険者データ入力!E27,IF(A1=4,被保険者データ入力!E37,IF(A1=5,被保険者データ入力!E47,IF(A1=6,被保険者データ入力!E57,IF(A1=7,被保険者データ入力!E67,IF(A1=8,被保険者データ入力!E77,IF(A1=9,被保険者データ入力!E87,IF(A1=10,被保険者データ入力!E97,IF(A1=11,被保険者データ入力!E107,IF(A1=12,被保険者データ入力!E117,IF(A1=13,被保険者データ入力!E127,IF(A1=14,被保険者データ入力!E137,IF(A1=15,被保険者データ入力!E147,IF(A1=16,被保険者データ入力!E157,IF(A1=17,被保険者データ入力!E167,IF(A1=18,被保険者データ入力!E177,IF(A1=19,被保険者データ入力!E187,IF(A1=20,被保険者データ入力!E197,IF(A1=21,被保険者データ入力!E207,IF(A1=22,被保険者データ入力!E217,IF(A1=23,被保険者データ入力!E227,IF(A1=24,被保険者データ入力!E237,IF(A1=25,被保険者データ入力!E247,IF(A1=26,被保険者データ入力!E257,IF(A1=27,被保険者データ入力!E267,IF(A1=28,被保険者データ入力!E277,IF(A1=29,被保険者データ入力!E287,IF(A1=30,被保険者データ入力!E297,\"\"))))))))))))))))))))))))))))))","v":0},null,null,null,null,null,null,null,null,null,null,null,null,null,null,null,null,{"$f":"IF(F87=0,\"\",VLOOKUP(F87,被保険者データ入力!E:J,2,0))","v":""},null,null,null,null,null,null,null,null,null,null,null,null,null,null,null,null,null,null,null,null,null,null,{"$f":"IF(F87=0,\"\",IF(VLOOKUP(F87,被保険者データ入力!E:J,3,0)=\"\",\"\",(VLOOKUP(F87,被保険者データ入力!E:J,3,0))))","v":""},null,null,null,null,null,null,null,null,null,null,null,null,"⑦",null,{"$f":"IF(F87=0,\"\",VLOOKUP(F87,被保険者データ入力!E:S,14,0))","v":""}]
[]
[]
[]
[null,null,null,null,null,"④※上記「賞与支払年月日（共通）」と同じ場合は記入不要です。",null,null,null,null,null,null,null,null,null,null,null,null,null,null,null,null,"⑤  ㋐(通貨)",null,null,null,null,null,null,null,null,null,null,"　㋑(現物)",null,null,null,null,null,null,null,null,null,null,null,"⑥(合計㋐+㋑) 千円未満は切捨て"]
[null,null,null,null,null,null,null,null,null,null,null,null,null,null,null,null,null,null,null,null,null,null,null,null,null,null,null,null,null,null,null,null,null,null,null,null,null,null,null,null,null,null,null,null,null,null,null,null,null,null,null,null,null,null,null,null,null,null,null,null,{"$f":"IF(F87=0,\"\",VLOOKUP(F87,被保険者データ入力!E:S,15,0))","v":""}]
[null,null,null,null,null,{"$f":"IF(F87=0,\"\",IF(VLOOKUP(F87,被保険者データ入力!E:O,7,0)=\"\",\"\",VLOOKUP(F87,被保険者データ入力!E:O,7,0)))","v":""},null,null,null,null,null,null,null,null,null,null,null,null,null,null,null,null,null,null,null,null,null,null,null,null,null,null,null,null,null,null,null,null,null,null,null,null,null,null,null,{"$f":"IF(F87=0,\"\",VLOOKUP(F87,被保険者データ入力!E:W,18,0))","v":""}]
[null,null,null,null,null,null,null,null,null,null,null,null,null,null,null,null,null,null,null,null,null,null,{"$f":"IF(F87=0,\"\",VLOOKUP(F87,被保険者データ入力!E:J,4,0))","v":""},null,null,null,null,null,null,null,null,null,null,{"$f":"IF(F87=0,\"\",VLOOKUP(F87,被保険者データ入力!E:J,5,0))","v":""},null,null,null,null,null,null,null,null,null,null,null,null,null,null,null,null,null,null,null,null,",000",null,null,"円",null,null,null,null,{"$f":"IF(F87=0,\"\",IF(VLOOKUP(F87,被保険者データ入力!E:U,16,0)=\"\",\"\",VLOOKUP(F87,被保険者データ入力!E:U,16,0)))","v":""},null,null,null,null,null,null,null,{"$f":"IF(F87=0,\"\",IF(VLOOKUP(F87,被保険者データ入力!E:U,11,0)=\"\",\"\",VLOOKUP(F87,被保険者データ入力!E:U,11,0)))","v":""},null,null,null,null,null,null,null,null,{"$f":"IF(F87=0,\"\",IF(VLOOKUP(F87,被保険者データ入力!E:U,11,0)=\"\",\"\",\")\"))","v":""}]
[]
[]
[null,null,null,null,null,{"$f":"IF(A1=1,被保険者データ入力!E8,IF(A1=2,被保険者データ入力!E18,IF(A1=3,被保険者データ入力!E28,IF(A1=4,被保険者データ入力!E38,IF(A1=5,被保険者データ入力!E48,IF(A1=6,被保険者データ入力!E58,IF(A1=7,被保険者データ入力!E68,IF(A1=8,被保険者データ入力!E78,IF(A1=9,被保険者データ入力!E88,IF(A1=10,被保険者データ入力!E98,IF(A1=11,被保険者データ入力!E108,IF(A1=12,被保険者データ入力!E118,IF(A1=13,被保険者データ入力!E128,IF(A1=14,被保険者データ入力!E138,IF(A1=15,被保険者データ入力!E148,IF(A1=16,被保険者データ入力!E158,IF(A1=17,被保険者データ入力!E168,IF(A1=18,被保険者データ入力!E178,IF(A1=19,被保険者データ入力!E188,IF(A1=20,被保険者データ入力!E198,IF(A1=21,被保険者データ入力!E208,IF(A1=22,被保険者データ入力!E218,IF(A1=23,被保険者データ入力!E228,IF(A1=24,被保険者データ入力!E238,IF(A1=25,被保険者データ入力!E248,IF(A1=26,被保険者データ入力!E258,IF(A1=27,被保険者データ入力!E268,IF(A1=28,被保険者データ入力!E278,IF(A1=29,被保険者データ入力!E288,IF(A1=30,被保険者データ入力!E198,\"\"))))))))))))))))))))))))))))))","v":0},null,null,null,null,null,null,null,null,null,null,null,null,null,null,null,null,{"$f":"IF(F97=0,\"\",VLOOKUP(F97,被保険者データ入力!E:J,2,0))","v":""},null,null,null,null,null,null,null,null,null,null,null,null,null,null,null,null,null,null,null,null,null,null,{"$f":"IF(F97=0,\"\",IF(VLOOKUP(F97,被保険者データ入力!E:J,3,0)=\"\",\"\",(VLOOKUP(F97,被保険者データ入力!E:J,3,0))))","v":""},null,null,null,null,null,null,null,null,null,null,null,null,"⑦",null,{"$f":"IF(F97=0,\"\",VLOOKUP(F97,被保険者データ入力!E:S,14,0))","v":""}]
[]
[]
[]
[null,null,null,null,null,"④※上記「賞与支払年月日（共通）」と同じ場合は記入不要です。",null,null,null,null,null,null,null,null,null,null,null,null,null,null,null,null,"⑤  ㋐(通貨)",null,null,null,null,null,null,null,null,null,null,"　㋑(現物)",null,null,null,null,null,null,null,null,null,null,null,"⑥(合計㋐+㋑) 千円未満は切捨て"]
[null,null,null,null,null,null,null,null,null,null,null,null,null,null,null,null,null,null,null,null,null,null,null,null,null,null,null,null,null,null,null,null,null,null,null,null,null,null,null,null,null,null,null,null,null,null,null,null,null,null,null,null,null,null,null,null,null,null,null,null,{"$f":"IF(F97=0,\"\",VLOOKUP(F97,被保険者データ入力!E:S,15,0))","v":""}]
[null,null,null,null,null,{"$f":"IF(F97=0,\"\",IF(VLOOKUP(F97,被保険者データ入力!E:O,7,0)=\"\",\"\",VLOOKUP(F97,被保険者データ入力!E:O,7,0)))","v":""},null,null,null,null,null,null,null,null,null,null,null,null,null,null,null,null,null,null,null,null,null,null,null,null,null,null,null,null,null,null,null,null,null,null,null,null,null,null,null,{"$f":"IF(F97=0,\"\",VLOOKUP(F97,被保険者データ入力!E:W,18,0))","v":""}]
[null,null,null,null,null,null,null,null,null,null,null,null,null,null,null,null,null,null,null,null,null,null,{"$f":"IF(F97=0,\"\",VLOOKUP(F97,被保険者データ入力!E:J,4,0))","v":""},null,null,null,null,null,null,null,null,null,null,{"$f":"IF(F97=0,\"\",VLOOKUP(F97,被保険者データ入力!E:J,5,0))","v":""},null,null,null,null,null,null,null,null,null,null,null,null,null,null,null,null,null,null,null,null,",000",null,null,"円",null,null,null,null,{"$f":"IF(F97=0,\"\",IF(VLOOKUP(F97,被保険者データ入力!E:U,16,0)=\"\",\"\",VLOOKUP(F97,被保険者データ入力!E:U,16,0)))","v":""},null,null,null,null,null,null,null,{"$f":"IF(F97=0,\"\",IF(VLOOKUP(F97,被保険者データ入力!E:U,11,0)=\"\",\"\",VLOOKUP(F97,被保険者データ入力!E:U,11,0)))","v":""},null,null,null,null,null,null,null,null,{"$f":"IF(F97=0,\"\",IF(VLOOKUP(F97,被保険者データ入力!E:U,11,0)=\"\",\"\",\")\"))","v":""}]
[]
[]
[null,null,null,null,null,{"$f":"IF(A1=1,被保険者データ入力!E9,IF(A1=2,被保険者データ入力!E19,IF(A1=3,被保険者データ入力!E29,IF(A1=4,被保険者データ入力!E39,IF(A1=5,被保険者データ入力!E49,IF(A1=6,被保険者データ入力!E59,IF(A1=7,被保険者データ入力!E69,IF(A1=8,被保険者データ入力!E79,IF(A1=9,被保険者データ入力!E89,IF(A1=10,被保険者データ入力!E99,IF(A1=11,被保険者データ入力!E109,IF(A1=12,被保険者データ入力!E119,IF(A1=13,被保険者データ入力!E129,IF(A1=14,被保険者データ入力!E139,IF(A1=15,被保険者データ入力!E149,IF(A1=16,被保険者データ入力!E159,IF(A1=17,被保険者データ入力!E169,IF(A1=18,被保険者データ入力!E179,IF(A1=19,被保険者データ入力!E189,IF(A1=20,被保険者データ入力!E199,IF(A1=21,被保険者データ入力!E209,IF(A1=22,被保険者データ入力!E219,IF(A1=23,被保険者データ入力!E229,IF(A1=24,被保険者データ入力!E239,IF(A1=25,被保険者データ入力!E249,IF(A1=26,被保険者データ入力!E259,IF(A1=27,被保険者データ入力!E269,IF(A1=28,被保険者データ入力!E279,IF(A1=29,被保険者データ入力!E289,IF(A1=30,被保険者データ入力!E299,\"\"))))))))))))))))))))))))))))))","v":0},null,null,null,null,null,null,null,null,null,null,null,null,null,null,null,null,{"$f":"IF(F107=0,\"\",VLOOKUP(F107,被保険者データ入力!E:J,2,0))","v":""},null,null,null,null,null,null,null,null,null,null,null,null,null,null,null,null,null,null,null,null,null,null,{"$f":"IF(F107=0,\"\",IF(VLOOKUP(F107,被保険者データ入力!E:J,3,0)=\"\",\"\",(VLOOKUP(F107,被保険者データ入力!E:J,3,0))))","v":""},null,null,null,null,null,null,null,null,null,null,null,null,"⑦",null,{"$f":"IF(F107=0,\"\",VLOOKUP(F107,被保険者データ入力!E:S,14,0))","v":""}]
[]
[]
[]
[null,null,null,null,null,"④※上記「賞与支払年月日（共通）」と同じ場合は記入不要です。",null,null,null,null,null,null,null,null,null,null,null,null,null,null,null,null,"⑤  ㋐(通貨)",null,null,null,null,null,null,null,null,null,null,"　㋑(現物)",null,null,null,null,null,null,null,null,null,null,null,"⑥(合計㋐+㋑) 千円未満は切捨て"]
[null,null,null,null,null,null,null,null,null,null,null,null,null,null,null,null,null,null,null,null,null,null,null,null,null,null,null,null,null,null,null,null,null,null,null,null,null,null,null,null,null,null,null,null,null,null,null,null,null,null,null,null,null,null,null,null,null,null,null,null,{"$f":"IF(F107=0,\"\",VLOOKUP(F107,被保険者データ入力!E:S,15,0))","v":""}]
[null,null,null,null,null,{"$f":"IF(F107=0,\"\",IF(VLOOKUP(F107,被保険者データ入力!E:O,7,0)=\"\",\"\",VLOOKUP(F107,被保険者データ入力!E:O,7,0)))","v":""},null,null,null,null,null,null,null,null,null,null,null,null,null,null,null,null,null,null,null,null,null,null,null,null,null,null,null,null,null,null,null,null,null,null,null,null,null,null,null,{"$f":"IF(F107=0,\"\",VLOOKUP(F107,被保険者データ入力!E:W,18,0))","v":""}]
[null,null,null,null,null,null,null,null,null,null,null,null,null,null,null,null,null,null,null,null,null,null,{"$f":"IF(F107=0,\"\",VLOOKUP(F107,被保険者データ入力!E:J,4,0))","v":""},null,null,null,null,null,null,null,null,null,null,{"$f":"IF(F107=0,\"\",VLOOKUP(F107,被保険者データ入力!E:J,5,0))","v":""},null,null,null,null,null,null,null,null,null,null,null,null,null,null,null,null,null,null,null,null,",000",null,null,"円",null,null,null,null,{"$f":"IF(F107=0,\"\",IF(VLOOKUP(F107,被保険者データ入力!E:U,16,0)=\"\",\"\",VLOOKUP(F107,被保険者データ入力!E:U,16,0)))","v":""},null,null,null,null,null,null,null,{"$f":"IF(F107=0,\"\",IF(VLOOKUP(F107,被保険者データ入力!E:U,11,0)=\"\",\"\",VLOOKUP(F107,被保険者データ入力!E:U,11,0)))","v":""},null,null,null,null,null,null,null,null,{"$f":"IF(F107=0,\"\",IF(VLOOKUP(F107,被保険者データ入力!E:U,11,0)=\"\",\"\",\")\"))","v":""}]
[]
[]
[null,null,null,null,null,{"$f":"IF(A1=1,被保険者データ入力!E10,IF(A1=2,被保険者データ入力!E20,IF(A1=3,被保険者データ入力!E30,IF(A1=4,被保険者データ入力!E40,IF(A1=5,被保険者データ入力!E50,IF(A1=6,被保険者データ入力!E60,IF(A1=7,被保険者データ入力!E70,IF(A1=8,被保険者データ入力!E80,IF(A1=9,被保険者データ入力!E90,IF(A1=10,被保険者データ入力!E100,IF(A1=11,被保険者データ入力!E110,IF(A1=12,被保険者データ入力!E120,IF(A1=13,被保険者データ入力!E130,IF(A1=14,被保険者データ入力!E140,IF(A1=15,被保険者データ入力!E150,IF(A1=16,被保険者データ入力!E160,IF(A1=17,被保険者データ入力!E170,IF(A1=18,被保険者データ入力!E180,IF(A1=19,被保険者データ入力!E190,IF(A1=20,被保険者データ入力!E200,IF(A1=21,被保険者データ入力!E210,IF(A1=22,被保険者データ入力!E220,IF(A1=23,被保険者データ入力!E230,IF(A1=24,被保険者データ入力!E240,IF(A1=25,被保険者データ入力!E250,IF(A1=26,被保険者データ入力!E260,IF(A1=27,被保険者データ入力!E270,IF(A1=28,被保険者データ入力!E280,IF(A1=29,被保険者データ入力!E290,IF(A1=30,被保険者データ入力!E300,\"\"))))))))))))))))))))))))))))))","v":0},null,null,null,null,null,null,null,null,null,null,null,null,null,null,null,null,{"$f":"IF(F117=0,\"\",VLOOKUP(F117,被保険者データ入力!E:J,2,0))","v":""},null,null,null,null,null,null,null,null,null,null,null,null,null,null,null,null,null,null,null,null,null,null,{"$f":"IF(F117=0,\"\",IF(VLOOKUP(F117,被保険者データ入力!E:J,3,0)=\"\",\"\",(VLOOKUP(F117,被保険者データ入力!E:J,3,0))))","v":""},null,null,null,null,null,null,null,null,null,null,null,null,"⑦",null,{"$f":"IF(F117=0,\"\",VLOOKUP(F117,被保険者データ入力!E:S,14,0))","v":""}]
[]
[]
[]
[null,null,null,null,null,"④※上記「賞与支払年月日（共通）」と同じ場合は記入不要です。",null,null,null,null,null,null,null,null,null,null,null,null,null,null,null,null,"⑤  ㋐(通貨)",null,null,null,null,null,null,null,null,null,null,"　㋑(現物)",null,null,null,null,null,null,null,null,null,null,null,"⑥(合計㋐+㋑) 千円未満は切捨て"]
[null,null,null,null,null,null,null,null,null,null,null,null,null,null,null,null,null,null,null,null,null,null,null,null,null,null,null,null,null,null,null,null,null,null,null,null,null,null,null,null,null,null,null,null,null,null,null,null,null,null,null,null,null,null,null,null,null,null,null,null,{"$f":"IF(F117=0,\"\",VLOOKUP(F117,被保険者データ入力!E:S,15,0))","v":""}]
[null,null,null,null,null,{"$f":"IF(F117=0,\"\",IF(VLOOKUP(F117,被保険者データ入力!E:O,7,0)=\"\",\"\",VLOOKUP(F117,被保険者データ入力!E:O,7,0)))","v":""},null,null,null,null,null,null,null,null,null,null,null,null,null,null,null,null,null,null,null,null,null,null,null,null,null,null,null,null,null,null,null,null,null,null,null,null,null,null,null,{"$f":"IF(F117=0,\"\",VLOOKUP(F117,被保険者データ入力!E:W,18,0))","v":""}]
[null,null,null,null,null,null,null,null,null,null,null,null,null,null,null,null,null,null,null,null,null,null,{"$f":"IF(F117=0,\"\",VLOOKUP(F117,被保険者データ入力!E:J,4,0))","v":""},null,null,null,null,null,null,null,null,null,null,{"$f":"IF(F117=0,\"\",VLOOKUP(F117,被保険者データ入力!E:J,5,0))","v":""},null,null,null,null,null,null,null,null,null,null,null,null,null,null,null,null,null,null,null,null,",000",null,null,"円",null,null,null,null,{"$f":"IF(F117=0,\"\",IF(VLOOKUP(F117,被保険者データ入力!E:U,16,0)=\"\",\"\",VLOOKUP(F117,被保険者データ入力!E:U,16,0)))","v":""},null,null,null,null,null,null,null,{"$f":"IF(F117=0,\"\",IF(VLOOKUP(F117,被保険者データ入力!E:U,11,0)=\"\",\"\",VLOOKUP(F117,被保険者データ入力!E:U,11,0)))","v":""},null,null,null,null,null,null,null,null,{"$f":"IF(F117=0,\"\",IF(VLOOKUP(F117,被保険者データ入力!E:U,11,0)=\"\",\"\",\")\"))","v":""}]
[]
[]
[null,null,null,null,null,{"$f":"IF(A1=1,被保険者データ入力!E11,IF(A1=2,被保険者データ入力!E21,IF(A1=3,被保険者データ入力!E31,IF(A1=4,被保険者データ入力!E41,IF(A1=5,被保険者データ入力!E51,IF(A1=6,被保険者データ入力!E61,IF(A1=7,被保険者データ入力!E71,IF(A1=8,被保険者データ入力!E81,IF(A1=9,被保険者データ入力!E91,IF(A1=10,被保険者データ入力!E101,IF(A1=11,被保険者データ入力!E111,IF(A1=12,被保険者データ入力!E121,IF(A1=13,被保険者データ入力!E131,IF(A1=14,被保険者データ入力!E141,IF(A1=15,被保険者データ入力!E151,IF(A1=16,被保険者データ入力!E161,IF(A1=17,被保険者データ入力!E171,IF(A1=18,被保険者データ入力!E181,IF(A1=19,被保険者データ入力!E191,IF(A1=20,被保険者データ入力!E201,IF(A1=21,被保険者データ入力!E211,IF(A1=22,被保険者データ入力!E221,IF(A1=23,被保険者データ入力!E231,IF(A1=24,被保険者データ入力!E241,IF(A1=25,被保険者データ入力!E251,IF(A1=26,被保険者データ入力!E261,IF(A1=27,被保険者データ入力!E271,IF(A1=28,被保険者データ入力!E281,IF(A1=29,被保険者データ入力!E291,IF(A1=30,被保険者データ入力!E301,\"\"))))))))))))))))))))))))))))))","v":0},null,null,null,null,null,null,null,null,null,null,null,null,null,null,null,null,{"$f":"IF(F127=0,\"\",VLOOKUP(F127,被保険者データ入力!E:J,2,0))","v":""},null,null,null,null,null,null,null,null,null,null,null,null,null,null,null,null,null,null,null,null,null,null,{"$f":"IF(F127=0,\"\",IF(VLOOKUP(F127,被保険者データ入力!E:J,3,0)=\"\",\"\",(VLOOKUP(F127,被保険者データ入力!E:J,3,0))))","v":""},null,null,null,null,null,null,null,null,null,null,null,null,"⑦",null,{"$f":"IF(F127=0,\"\",VLOOKUP(F127,被保険者データ入力!E:S,14,0))","v":""}]
[]
[]
[]
[null,null,null,null,null,"④※上記「賞与支払年月日（共通）」と同じ場合は記入不要です。",null,null,null,null,null,null,null,null,null,null,null,null,null,null,null,null,"⑤  ㋐(通貨)",null,null,null,null,null,null,null,null,null,null,"　㋑(現物)",null,null,null,null,null,null,null,null,null,null,null,"⑥(合計㋐+㋑) 千円未満は切捨て"]
[null,null,null,null,null,null,null,null,null,null,null,null,null,null,null,null,null,null,null,null,null,null,null,null,null,null,null,null,null,null,null,null,null,null,null,null,null,null,null,null,null,null,null,null,null,null,null,null,null,null,null,null,null,null,null,null,null,null,null,null,{"$f":"IF(F127=0,\"\",VLOOKUP(F127,被保険者データ入力!E:S,15,0))","v":""}]
[null,null,null,null,null,{"$f":"IF(F127=0,\"\",IF(VLOOKUP(F127,被保険者データ入力!E:O,7,0)=\"\",\"\",VLOOKUP(F127,被保険者データ入力!E:O,7,0)))","v":""},null,null,null,null,null,null,null,null,null,null,null,null,null,null,null,null,null,null,null,null,null,null,null,null,null,null,null,null,null,null,null,null,null,null,null,null,null,null,null,{"$f":"IF(F127=0,\"\",VLOOKUP(F127,被保険者データ入力!E:W,18,0))","v":""}]
[null,null,null,null,null,null,null,null,null,null,null,null,null,null,null,null,null,null,null,null,null,null,{"$f":"IF(F127=0,\"\",VLOOKUP(F127,被保険者データ入力!E:J,4,0))","v":""},null,null,null,null,null,null,null,null,null,null,{"$f":"IF(F127=0,\"\",VLOOKUP(F127,被保険者データ入力!E:J,5,0))","v":""},null,null,null,null,null,null,null,null,null,null,null,null,null,null,null,null,null,null,null,null,",000",null,null,"円",null,null,null,null,{"$f":"IF(F127=0,\"\",IF(VLOOKUP(F127,被保険者データ入力!E:U,16,0)=\"\",\"\",VLOOKUP(F127,被保険者データ入力!E:U,16,0)))","v":""},null,null,null,null,null,null,null,{"$f":"IF(F127=0,\"\",IF(VLOOKUP(F127,被保険者データ入力!E:U,11,0)=\"\",\"\",VLOOKUP(F127,被保険者データ入力!E:U,11,0)))","v":""},null,null,null,null,null,null,null,null,{"$f":"IF(F127=0,\"\",IF(VLOOKUP(F127,被保険者データ入力!E:U,11,0)=\"\",\"\",\")\"))","v":""}]
[]
[]
[null,null,null,null,null,{"$f":"IF(A1=1,被保険者データ入力!E12,IF(A1=2,被保険者データ入力!E22,IF(A1=3,被保険者データ入力!E32,IF(A1=4,被保険者データ入力!E42,IF(A1=5,被保険者データ入力!E52,IF(A1=6,被保険者データ入力!E62,IF(A1=7,被保険者データ入力!E72,IF(A1=8,被保険者データ入力!E82,IF(A1=9,被保険者データ入力!E92,IF(A1=10,被保険者データ入力!E102,IF(A1=11,被保険者データ入力!E112,IF(A1=12,被保険者データ入力!E122,IF(A1=13,被保険者データ入力!E132,IF(A1=14,被保険者データ入力!E142,IF(A1=15,被保険者データ入力!E152,IF(A1=16,被保険者データ入力!E162,IF(A1=17,被保険者データ入力!E172,IF(A1=8,被保険者データ入力!E182,IF(A1=19,被保険者データ入力!E192,IF(A1=20,被保険者データ入力!E202,IF(A1=21,被保険者データ入力!E212,IF(A1=22,被保険者データ入力!E222,IF(A1=23,被保険者データ入力!E232,IF(A1=24,被保険者データ入力!E242,IF(A1=25,被保険者データ入力!E252,IF(A1=26,被保険者データ入力!E262,IF(A1=27,被保険者データ入力!E272,IF(A1=28,被保険者データ入力!E282,IF(A1=29,被保険者データ入力!E292,IF(A1=30,被保険者データ入力!E302,\"\"))))))))))))))))))))))))))))))","v":0},null,null,null,null,null,null,null,null,null,null,null,null,null,null,null,null,{"$f":"IF(F137=0,\"\",VLOOKUP(F137,被保険者データ入力!E:J,2,0))","v":""},null,null,null,null,null,null,null,null,null,null,null,null,null,null,null,null,null,null,null,null,null,null,{"$f":"IF(F137=0,\"\",IF(VLOOKUP(F137,被保険者データ入力!E:J,3,0)=\"\",\"\",(VLOOKUP(F137,被保険者データ入力!E:J,3,0))))","v":""},null,null,null,null,null,null,null,null,null,null,null,null,"⑦",null,{"$f":"IF(F137=0,\"\",VLOOKUP(F137,被保険者データ入力!E:S,14,0))","v":""}]
[]
[]
[]
[null,null,null,null,null,"④※上記「賞与支払年月日（共通）」と同じ場合は記入不要です。",null,null,null,null,null,null,null,null,null,null,null,null,null,null,null,null,"⑤  ㋐(通貨)",null,null,null,null,null,null,null,null,null,null,"　㋑(現物)",null,null,null,null,null,null,null,null,null,null,null,"⑥(合計㋐+㋑) 千円未満は切捨て"]
[null,null,null,null,null,null,null,null,null,null,null,null,null,null,null,null,null,null,null,null,null,null,null,null,null,null,null,null,null,null,null,null,null,null,null,null,null,null,null,null,null,null,null,null,null,null,null,null,null,null,null,null,null,null,null,null,null,null,null,null,{"$f":"IF(F137=0,\"\",VLOOKUP(F137,被保険者データ入力!E:S,15,0))","v":""}]
[null,null,null,null,null,{"$f":"IF(F137=0,\"\",IF(VLOOKUP(F137,被保険者データ入力!E:O,7,0)=\"\",\"\",VLOOKUP(F137,被保険者データ入力!E:O,7,0)))","v":""},null,null,null,null,null,null,null,null,null,null,null,null,null,null,null,null,null,null,null,null,null,null,null,null,null,null,null,null,null,null,null,null,null,null,null,null,null,null,null,{"$f":"IF(F137=0,\"\",VLOOKUP(F137,被保険者データ入力!E:W,18,0))","v":""}]
[null,null,null,null,null,null,null,null,null,null,null,null,null,null,null,null,null,null,null,null,null,null,{"$f":"IF(F137=0,\"\",VLOOKUP(F137,被保険者データ入力!E:J,4,0))","v":""},null,null,null,null,null,null,null,null,null,null,{"$f":"IF(F137=0,\"\",VLOOKUP(F137,被保険者データ入力!E:J,5,0))","v":""},null,null,null,null,null,null,null,null,null,null,null,null,null,null,null,null,null,null,null,null,",000",null,null,"円",null,null,null,null,{"$f":"IF(F137=0,\"\",IF(VLOOKUP(F137,被保険者データ入力!E:U,16,0)=\"\",\"\",VLOOKUP(F137,被保険者データ入力!E:U,16,0)))","v":""},null,null,null,null,null,null,null,{"$f":"IF(F137=0,\"\",IF(VLOOKUP(F137,被保険者データ入力!E:U,11,0)=\"\",\"\",VLOOKUP(F137,被保険者データ入力!E:U,11,0)))","v":""},null,null,null,null,null,null,null,null,{"$f":"IF(F137=0,\"\",IF(VLOOKUP(F137,被保険者データ入力!E:U,11,0)=\"\",\"\",\")\"))","v":""}]
[]
[]
[null,null,null,null,null,{"$f":"IF(A1=1,被保険者データ入力!E13,IF(A1=2,被保険者データ入力!E23,IF(A1=3,被保険者データ入力!E33,IF(A1=4,被保険者データ入力!E43,IF(A1=5,被保険者データ入力!E53,IF(A1=6,被保険者データ入力!E63,IF(A1=7,被保険者データ入力!E73,IF(A1=8,被保険者データ入力!E83,IF(A1=9,被保険者データ入力!E93,IF(A1=10,被保険者データ入力!E103,IF(A1=11,被保険者データ入力!E113,IF(A1=12,被保険者データ入力!E123,IF(A1=13,被保険者データ入力!E133,IF(A1=14,被保険者データ入力!E143,IF(A1=15,被保険者データ入力!E153,IF(A1=16,被保険者データ入力!E163,IF(A1=17,被保険者データ入力!E173,IF(A1=18,被保険者データ入力!E183,IF(A1=19,被保険者データ入力!E193,IF(A1=20,被保険者データ入力!E203,IF(A1=21,被保険者データ入力!E213,IF(A1=22,被保険者データ入力!E223,IF(A1=23,被保険者データ入力!E233,IF(A1=24,被保険者データ入力!E243,IF(A1=25,被保険者データ入力!E253,IF(A1=26,被保険者データ入力!E263,IF(A1=27,被保険者データ入力!E273,IF(A1=28,被保険者データ入力!E283,IF(A1=29,被保険者データ入力!E293,IF(A1=30,被保険者データ入力!E303,\"\"))))))))))))))))))))))))))))))","v":0},null,null,null,null,null,null,null,null,null,null,null,null,null,null,null,null,{"$f":"IF(F147=0,\"\",VLOOKUP(F147,被保険者データ入力!E:J,2,0))","v":""},null,null,null,null,null,null,null,null,null,null,null,null,null,null,null,null,null,null,null,null,null,null,{"$f":"IF(F147=0,\"\",IF(VLOOKUP(F147,被保険者データ入力!E:J,3,0)=\"\",\"\",(VLOOKUP(F147,被保険者データ入力!E:J,3,0))))","v":""},null,null,null,null,null,null,null,null,null,null,null,null,"⑦",null,{"$f":"IF(F147=0,\"\",VLOOKUP(F147,被保険者データ入力!E:S,14,0))","v":""}]
[]
[]
[]
[null,null,null,null,null,"④※上記「賞与支払年月日（共通）」と同じ場合は記入不要です。",null,null,null,null,null,null,null,null,null,null,null,null,null,null,null,null,"⑤  ㋐(通貨)",null,null,null,null,null,null,null,null,null,null,"　㋑(現物)",null,null,null,null,null,null,null,null,null,null,null,"⑥(合計㋐+㋑) 千円未満は切捨て"]
[null,null,null,null,null,null,null,null,null,null,null,null,null,null,null,null,null,null,null,null,null,null,null,null,null,null,null,null,null,null,null,null,null,null,null,null,null,null,null,null,null,null,null,null,null,null,null,null,null,null,null,null,null,null,null,null,null,null,null,null,{"$f":"IF(F147=0,\"\",VLOOKUP(F147,被保険者データ入力!E:S,15,0))","v":""}]
[null,null,null,null,null,{"$f":"IF(F147=0,\"\",IF(VLOOKUP(F147,被保険者データ入力!E:O,7,0)=\"\",\"\",VLOOKUP(F147,被保険者データ入力!E:O,7,0)))","v":""},null,null,null,null,null,null,null,null,null,null,null,null,null,null,null,null,null,null,null,null,null,null,null,null,null,null,null,null,null,null,null,null,null,null,null,null,null,null,null,{"$f":"IF(F147=0,\"\",VLOOKUP(F147,被保険者データ入力!E:W,18,0))","v":""}]
[null,null,null,null,null,null,null,null,null,null,null,null,null,null,null,null,null,null,null,null,null,null,{"$f":"IF(F147=0,\"\",VLOOKUP(F147,被保険者データ入力!E:J,4,0))","v":""},null,null,null,null,null,null,null,null,null,null,{"$f":"IF(F147=0,\"\",VLOOKUP(F147,被保険者データ入力!E:J,5,0))","v":""},null,null,null,null,null,null,null,null,null,null,null,null,null,null,null,null,null,null,null,null,",000",null,null,"円",null,null,null,null,{"$f":"IF(F147=0,\"\",IF(VLOOKUP(F147,被保険者データ入力!E:U,16,0)=\"\",\"\",VLOOKUP(F147,被保険者データ入力!E:U,16,0)))","v":""},null,null,null,null,null,null,null,{"$f":"IF(F147=0,\"\",IF(VLOOKUP(F147,被保険者データ入力!E:U,11,0)=\"\",\"\",VLOOKUP(F147,被保険者データ入力!E:U,11,0)))","v":""},null,null,null,null,null,null,null,null,{"$f":"IF(F147=0,\"\",IF(VLOOKUP(F147,被保険者データ入力!E:U,11,0)=\"\",\"\",\")\"))","v":""}]
[]
[]
[]
[null,null,null,null,null,null,null,null,null,null,null,null,null,null,null,null,null,null,null,null,null,null,null,null,null,null,null,null,null,null,null,null,null,null,null,null,null,null,null,null,null,null,null,null,null,null,null,null,null,null,null,null,null,null,null,null,null,null,null,null,null,null,"受　　付　　印"]

{"sheet":"提出者記入欄データ入力","index":2,"n_rows":10,"n_cols":1,"rows_kept":10,"cut":false,"hidden":false,"merged":[[9,1,9,9],[1,2,1,9],[5,1,5,9],[7,1,7,9],[8,1,8,9],[0,1,0,9],[6,1,6,9],[2,0,3,0],[7,0,8,0],[2,1,2,9],[3,1,3,9],[4,1,4,9]]}
["提出年月日"]
["事業所所在地（郵便番号）　"]
["事業所所在地　"]
[]
["事業所名称"]
["事業主氏名"]
["電話番号"]
["社会保険労務士記載欄\n（氏名等）"]
[]
["健康保険の記号"]

{"sheet":"被保険者データ入力","index":3,"n_rows":303,"n_cols":22,"rows_kept":303,"cut":false,"hidden":false,"merged":[[1,16,2,16],[1,17,2,17],[1,18,2,18],[1,19,2,19],[1,10,2,10],[1,11,2,11],[1,14,2,14],[0,3,0,4],[1,3,2,3],[1,4,2,4],[1,5,2,5],[1,7,2,7],[0,11,0,13],[1,12,2,12],[1,13,2,13],[1,9,2,9],[1,6,2,6],[1,8,2,8]]}
[null,null,null,"賞与支払日"]
[null,null,null,"№","健康保険\n被保険者等番号","被保険者氏名","生年月日","賞与支払額\n（通貨）","賞与支払額\n（現物）","賞与額計\n（千円未満切り捨て）",{"$f":"\"※賞与支払日\n（\"&(TEXT(F1,\"ggge年m月d日\")&\"と異なる\n場合のみ入力）\")","v":"※賞与支払日\n（明治33年1月0日と異なる\n場合のみ入力）"},"※備考\n70歳以上\n被保険者","※備考\n二以上\n勤務者","※備考\n同一月内\n賞与合算",{"$f":"IF(SUM(COUNTIF(N4:N399,\"●\"))>0,\"同一月内の賞与合算の場合のみ初回支払日入力\",\"\")","v":""},null,"※備考\n70歳以上被保険者","※備考\n二以上勤務","※備考\n同一月内賞与合算","同一月内の賞与合算の場合のみ初回支払日入力"]
[]
[{"$f":"IF(E4=\"\",\"\",B4)","v":""},1,11,{"$f":"IF(E4=\"\",\"\",ROW()-3)","v":""},null,null,null,null,null,{"$f":"IF(H4=\"\",\"\",ROUNDDOWN((H4+I4),-3))","v":""},null,null,null,null,null,{"$f":"MAX(A4:A473)","v":0},{"$f":"IF(L4=0,\"\",\"70歳以上被保険者\")","v":""},{"$f":"IF(M4=0,\"\",\"二以上勤務者 \")","v":""},{"$f":"IF(N4=0,\"\",\"同一月内の賞与合算 \")","v":""},{"$f":"IF(N4=0,\"\",\"（  初回支払日： \")","v":""},"●",{"$f":"IFERROR(J4/1000,\"\")","v":""}]
[{"$f":"IF(E5=\"\",\"\",B5)","v":""},1,12,{"$f":"IF(E5=\"\",\"\",ROW()-3)","v":""},null,null,null,null,null,{"$f":"IF(H5=\"\",\"\",ROUNDDOWN((H5+I5),-3))","v":""},null,null,null,null,null,null,{"$f":"IF(L5=0,\"\",\"70歳以上被保険者\")","v":""},{"$f":"IF(M5=0,\"\",\"二以上勤務者 \")","v":""},{"$f":"IF(N5=0,\"\",\"同一月内の賞与合算 \")","v":""},{"$f":"IF(N5=0,\"\",\"（  初回支払日： \")","v":""},null,{"$f":"IFERROR(J5/1000,\"\")","v":""}]
["",1,13,"",null,null,null,null,null,{"$f":"IF(H6=\"\",\"\",ROUNDDOWN((H6+I6),-3))","v":""},null,null,null,null,null,null,"","","","",null,""]
["",1,14,"",null,null,null,null,null,"",null,null,null,null,null,null,"","","","",null,""]
["",1,15,"",null,null,null,null,null,"",null,null,null,null,null,null,"","","","",null,""]
["",1,16,"",null,null,null,null,null,"",null,null,null,null,null,null,"","","","",null,""]
["",1,17,"",null,null,null,null,null,"",null,null,null,null,null,null,"","","","",null,""]
["",1,18,"",null,null,null,null,null,"",null,null,null,null,null,null,"","","","",null,""]
["",1,19,"",null,null,null,null,null,"",null,null,null,null,null,null,"","","","",null,""]
["",1,20,"",null,null,null,null,null,"",null,null,null,null,null,null,"","","","",null,""]
["",{"$f":"B4+1","v":2},21,"",null,null,null,null,null,"",null,null,null,null,null,null,"","","","",null,""]
["",{"$f":"B5+1","v":2},22,"",null,null,null,null,null,"",null,null,null,null,null,null,"","","","",null,""]
["",2,23,"",null,null,null,null,null,"",null,null,null,null,null,null,"","","","",null,""]
["",2,24,"",null,null,null,null,null,{"$f":"IF(H17=\"\",\"\",ROUNDDOWN((H17+I17),-3))","v":""},null,null,null,null,null,null,"","","","",null,""]
["",2,25,"",null,null,null,null,null,"",null,null,null,null,null,null,"","","","",null,""]
["",2,26,"",null,null,null,null,null,"",null,null,null,null,null,null,"","","","",null,""]
["",2,27,"",null,null,null,null,null,"",null,null,null,null,null,null,"","","","",null,""]
["",2,28,"",null,null,null,null,null,{"$f":"IF(H21=\"\",\"\",ROUNDDOWN((H21+I21),-3))","v":""},null,null,null,null,null,null,"","","","",null,""]
["",2,29,"",null,null,null,null,null,"",null,null,null,null,null,null,"","","","",null,""]
["",2,30,"",null,null,null,null,null,"",null,null,null,null,null,null,"","","","",null,""]
["",3,31,"",null,null,null,null,null,"",null,null,null,null,null,null,"","","","",null,""]
["",3,32,"",null,null,null,null,null,"",null,null,null,null,null,null,"","","","",null,""]
["",3,33,"",null,null,null,null,null,"",null,null,null,null,null,null,"","","","",null,""]
["",3,34,"",null,null,null,null,null,"",null,null,null,null,null,null,"","","","",null,""]
["",3,35,"",null,null,null,null,null,"",null,null,null,null,null,null,"","","","",null,""]
["",3,36,"",null,null,null,null,null,"",null,null,null,null,null,null,"","","","",null,""]
["",3,37,"",null,null,null,null,null,"",null,null,null,null,null,null,"","","","",null,""]
["",3,38,"",null,null,null,null,null,"",null,null,null,null,null,null,"","","","",null,""]
["",3,39,"",null,null,null,null,null,"",null,null,null,null,null,null,"","","","",null,""]
["",3,40,"",null,null,null,null,null,"",null,null,null,null,null,null,"","","","",null,""]
["",4,41,"",null,null,null,null,null,"",null,null,null,null,null,null,"","","","",null,""]
["",4,42,"",null,null,null,null,null,"",null,null,null,null,null,null,"","","","",null,""]
["",4,43,"",null,null,null,null,null,"",null,null,null,null,null,null,"","","","",null,""]
["",4,44,"",null,null,null,null,null,"",null,null,null,null,null,null,"","","","",null,""]
["",4,45,"",null,null,null,null,null,"",null,null,null,null,null,null,"","","","",null,""]
["",4,46,"",null,null,null,null,null,"",null,null,null,null,null,null,"","","","",null,""]
["",4,47,"",null,null,null,null,null,"",null,null,null,null,null,null,"","","","",null,""]
["",4,48,"",null,null,null,null,null,"",null,null,null,null,null,null,"","","","",null,""]
["",4,49,"",null,null,null,null,null,"",null,null,null,null,null,null,"","","","",null,""]
["",4,50,"",null,null,null,null,null,"",null,null,null,null,null,null,"","","","",null,""]
["",5,51,"",null,null,null,null,null,"",null,null,null,null,null,null,"","","","",null,""]
["",5,52,"",null,null,null,null,null,"",null,null,null,null,null,null,"","","","",null,""]
["",5,53,"",null,null,null,null,null,"",null,null,null,null,null,null,"","","","",null,""]
["",5,54,"",null,null,null,null,null,"",null,null,null,null,null,null,"","","","",null,""]
["",5,55,"",null,null,null,null,null,"",null,null,null,null,null,null,"","","","",null,""]
["",5,56,"",null,null,null,null,null,"",null,null,null,null,null,null,"","","","",null,""]
["",5,57,"",null,null,null,null,null,"",null,null,null,null,null,null,"","","","",null,""]
["",5,58,"",null,null,null,null,null,"",null,null,null,null,null,null,"","","","",null,""]
["",5,59,"",null,null,null,null,null,"",null,null,null,null,null,null,"","","","",null,""]
["",5,60,"",null,null,null,null,null,"",null,null,null,null,null,null,"","","","",null,""]
["",6,61,"",null,null,null,null,null,"",null,null,null,null,null,null,"","","","",null,""]
["",6,62,"",null,null,null,null,null,"",null,null,null,null,null,null,"","","","",null,""]
["",6,63,"",null,null,null,null,null,"",null,null,null,null,null,null,"","","","",null,""]
["",6,64,"",null,null,null,null,null,"",null,null,null,null,null,null,"","","","",null,""]
["",6,65,"",null,null,null,null,null,"",null,null,null,null,null,null,"","","","",null,""]
["",6,66,"",null,null,null,null,null,"",null,null,null,null,null,null,"","","","",null,""]
["",6,67,"",null,null,null,null,null,"",null,null,null,null,null,null,"","","","",null,""]
["",6,68,"",null,null,null,null,null,"",null,null,null,null,null,null,"","","","",null,""]
["",6,69,"",null,null,null,null,null,"",null,null,null,null,null,null,"","","","",null,""]
["",6,70,"",null,null,null,null,null,"",null,null,null,null,null,null,"","","","",null,""]
["",7,71,"",null,null,null,null,null,"",null,null,null,null,null,null,"","","","",null,""]
["",7,72,"",null,null,null,null,null,"",null,null,null,null,null,null,"","","","",null,""]
["",7,73,"",null,null,null,null,null,"",null,null,null,null,null,null,"","","","",null,""]
["",7,74,"",null,null,null,null,null,"",null,null,null,null,null,null,"","","","",null,""]
["",7,75,"",null,null,null,null,null,"",null,null,null,null,null,null,"","","","",null,""]
[{"$f":"IF(E69=\"\",\"\",B69)","v":""},7,76,{"$f":"IF(E69=\"\",\"\",ROW()-3)","v":""},null,null,null,null,null,"",null,null,null,null,null,null,{"$f":"IF(L69=0,\"\",\"70歳以上被保険者\")","v":""},{"$f":"IF(M69=0,\"\",\"二以上勤務者 \")","v":""},{"$f":"IF(N69=0,\"\",\"同一月内の賞与合算 \")","v":""},{"$f":"IF(N69=0,\"\",\"（  初回支払日： \")","v":""},null,{"$f":"IFERROR(J69/1000,\"\")","v":""}]
["",7,77,"",null,null,null,null,null,"",null,null,null,null,null,null,"","","","",null,""]
["",7,78,"",null,null,null,null,null,"",null,null,null,null,null,null,"","","","",null,""]
["",7,79,"",null,null,null,null,null,"",null,null,null,null,null,null,"","","","",null,""]
["",7,80,"",null,null,null,null,null,"",null,null,null,null,null,null,"","","","",null,""]
["",8,81,"",null,null,null,null,null,"",null,null,null,null,null,null,"","","","",null,""]
["",8,82,"",null,null,null,null,null,"",null,null,null,null,null,null,"","","","",null,""]
["",8,83,"",null,null,null,null,null,"",null,null,null,null,null,null,"","","","",null,""]
["",8,84,"",null,null,null,null,null,"",null,null,null,null,null,null,"","","","",null,""]
["",8,85,"",null,null,null,null,null,"",null,null,null,null,null,null,"","","","",null,""]
["",{"$f":"B69+1","v":8},86,"",null,null,null,null,null,"",null,null,null,null,null,null,"","","","",null,""]
["",8,87,"",null,null,null,null,null,"",null,null,null,null,null,null,"","","","",null,""]
["",8,88,"",null,null,null,null,null,"",null,null,null,null,null,null,"","","","",null,""]
["",8,89,"",null,null,null,null,null,"",null,null,null,null,null,null,"","","","",null,""]
["",8,90,"",null,null,null,null,null,"",null,null,null,null,null,null,"","","","",null,""]
["",9,91,"",null,null,null,null,null,"",null,null,null,null,null,null,"","","","",null,""]
["",9,92,"",null,null,null,null,null,{"$f":"IF(H85=\"\",\"\",ROUNDDOWN((H85+I85),-3))","v":""},null,null,null,null,null,null,"","","","",null,""]
["",9,93,"",null,null,null,null,null,"",null,null,null,null,null,null,"","","","",null,""]
["",9,94,"",null,null,null,null,null,"",null,null,null,null,null,null,"","","","",null,""]
["",9,95,"",null,null,null,null,null,{"$f":"IF(H88=\"\",\"\",ROUNDDOWN((H88+I88),-3))","v":""},null,null,null,null,null,null,"","","","",null,""]
["",9,96,"",null,null,null,null,null,"",null,null,null,null,null,null,"","","","",null,""]
["",9,97,"",null,null,null,null,null,"",null,null,null,null,null,null,"","","","",null,""]
["",9,98,"",null,null,null,null,null,"",null,null,null,null,null,null,"","","","",null,""]
["",9,99,"",null,null,null,null,null,"",null,null,null,null,null,null,"","","","",null,""]
["",9,100,"",null,null,null,null,null,"",null,null,null,null,null,null,"","","","",null,""]
["",10,101,"",null,null,null,null,null,{"$f":"IF(H94=\"\",\"\",ROUNDDOWN((H94+I94),-3))","v":""},null,null,null,null,null,null,"","","","",null,""]
["",10,102,"",null,null,null,null,null,"",null,null,null,null,null,null,"","","","",null,""]
["",10,103,"",null,null,null,null,null,"",null,null,null,null,null,null,"","","","",null,""]
["",10,104,"",null,null,null,null,null,"",null,null,null,null,null,null,"","","","",null,""]
["",10,105,"",null,null,null,null,null,"",null,null,null,null,null,null,"","","","",null,""]
["",10,106,"",null,null,null,null,null,"",null,null,null,null,null,null,"","","","",null,""]
["",10,107,"",null,null,null,null,null,"",null,null,null,null,null,null,"","","","",null,""]
["",10,108,"",null,null,null,null,null,"",null,null,null,null,null,null,"","","","",null,""]
["",10,109,"",null,null,null,null,null,"",null,null,null,null,null,null,"","","","",null,""]
["",10,110,"",null,null,null,null,null,"",null,null,null,null,null,null,"","","","",null,""]
["",11,111,"",null,null,null,null,null,"",null,null,null,null,null,null,"","","","",null,""]
["",11,112,"",null,null,null,null,null,"",null,null,null,null,null,null,"","","","",null,""]
["",11,113,"",null,null,null,null,null,"",null,null,null,null,null,null,"","","","",null,""]
["",11,114,"",null,null,null,null,null,"",null,null,null,null,null,null,"","","","",null,""]
["",11,115,"",null,null,null,null,null,"",null,null,null,null,null,null,"","","","",null,""]
["",11,116,"",null,null,null,null,null,"",null,null,null,null,null,null,"","","","",null,""]
["",11,117,"",null,null,null,null,null,"",null,null,null,null,null,null,"","","","",null,""]
["",11,118,"",null,null,null,null,null,"",null,null,null,null,null,null,"","","","",null,""]
["",11,119,"",null,null,null,null,null,"",null,null,null,null,null,null,"","","","",null,""]
["",11,120,"",null,null,null,null,null,"",null,null,null,null,null,null,"","","","",null,""]
["",12,121,"",null,null,null,null,null,"",null,null,null,null,null,null,"","","","",null,""]
["",12,122,"",null,null,null,null,null,"",null,null,null,null,null,null,"","","","",null,""]
["",12,123,"",null,null,null,null,null,"",null,null,null,null,null,null,"","","","",null,""]
["",12,124,"",null,null,null,null,null,"",null,null,null,null,null,null,"","","","",null,""]
["",12,125,"",null,null,null,null,null,"",null,null,null,null,null,null,"","","","",null,""]
["",12,126,"",null,null,null,null,null,"",null,null,null,null,null,null,"","","","",null,""]
["",12,127,"",null,null,null,null,null,"",null,null,null,null,null,null,"","","","",null,""]
["",12,128,"",null,null,null,null,null,"",null,null,null,null,null,null,"","","","",null,""]
["",12,129,"",null,null,null,null,null,"",null,null,null,null,null,null,"","","","",null,""]
["",12,130,"",null,null,null,null,null,"",null,null,null,null,null,null,"","","","",null,""]
["",13,131,"",null,null,null,null,null,"",null,null,null,null,null,null,"","","","",null,""]
["",13,132,"",null,null,null,null,null,"",null,null,null,null,null,null,"","","","",null,""]
["",13,133,"",null,null,null,null,null,"",null,null,null,null,null,null,"","","","",null,""]
["",13,134,"",null,null,null,null,null,"",null,null,null,null,null,null,"","","","",null,""]
["",13,135,"",null,null,null,null,null,"",null,null,null,null,null,null,"","","","",null,""]
["",13,136,"",null,null,null,null,null,"",null,null,null,null,null,null,"","","","",null,""]
["",13,137,"",null,null,null,null,null,"",null,null,null,null,null,null,"","","","",null,""]
["",13,138,"",null,null,null,null,null,"",null,null,null,null,null,null,"","","","",null,""]
["",13,139,"",null,null,null,null,null,"",null,null,null,null,null,null,"","","","",null,""]
[{"$f":"IF(E133=\"\",\"\",B133)","v":""},13,140,{"$f":"IF(E133=\"\",\"\",ROW()-3)","v":""},null,null,null,null,null,{"$f":"IF(H133=\"\",\"\",ROUNDDOWN((H133+I133),-3))","v":""},null,null,null,null,null,null,{"$f":"IF(L133=0,\"\",\"70歳以上被保険者\")","v":""},{"$f":"IF(M133=0,\"\",\"二以上勤務者 \")","v":""},{"$f":"IF(N133=0,\"\",\"同一月内の賞与合算 \")","v":""},{"$f":"IF(N133=0,\"\",\"（  初回支払日： \")","v":""},null,{"$f":"IFERROR(J133/1000,\"\")","v":""}]
["",14,141,"",null,null,null,null,null,"",null,null,null,null,null,null,"","","","",null,""]
["",14,142,"",null,null,null,null,null,"",null,null,null,null,null,null,"","","","",null,""]
["",14,143,"",null,null,null,null,null,"",null,null,null,null,null,null,"","","","",null,""]
["",14,144,"",null,null,null,null,null,"",null,null,null,null,null,null,"","","","",null,""]
["",14,145,"",null,null,null,null,null,"",null,null,null,null,null,null,"","","","",null,""]
["",14,146,"",null,null,null,null,null,"",null,null,null,null,null,null,"","","","",null,""]
["",14,147,"",null,null,null,null,null,"",null,null,null,null,null,null,"","","","",null,""]
["",14,148,"",null,null,null,null,null,"",null,null,null,null,null,null,"","","","",null,""]
["",14,149,"",null,null,null,null,null,"",null,null,null,null,null,null,"","","","",null,""]
["",{"$f":"B133+1","v":14},150,"",null,null,null,null,null,"",null,null,null,null,null,null,"","","","",null,""]
["",15,151,"",null,null,null,null,null,"",null,null,null,null,null,null,"","","","",null,""]
["",15,152,"",null,null,null,null,null,"",null,null,null,null,null,null,"","","","",null,""]
["",15,153,"",null,null,null,null,null,"",null,null,null,null,null,null,"","","","",null,""]
["",15,154,"",null,null,null,null,null,"",null,null,null,null,null,null,"","","","",null,""]
["",15,155,"",null,null,null,null,null,"",null,null,null,null,null,null,"","","","",null,""]
["",15,156,"",null,null,null,null,null,"",null,null,null,null,null,null,"","","","",null,""]
["",15,157,"",null,null,null,null,null,"",null,null,null,null,null,null,"","","","",null,""]
["",15,158,"",null,null,null,null,null,"",null,null,null,null,null,null,"","","","",null,""]
["",15,159,"",null,null,null,null,null,"",null,null,null,null,null,null,"","","","",null,""]
["",15,160,"",null,null,null,null,null,"",null,null,null,null,null,null,"","","","",null,""]
["",16,161,"",null,null,null,null,null,"",null,null,null,null,null,null,"","","","",null,""]
["",16,162,"",null,null,null,null,null,"",null,null,null,null,null,null,"","","","",null,""]
["",16,163,"",null,null,null,null,null,"",null,null,null,null,null,null,"","","","",null,""]
["",16,164,"",null,null,null,null,null,"",null,null,null,null,null,null,"","","","",null,""]
["",16,165,"",null,null,null,null,null,"",null,null,null,null,null,null,"","","","",null,""]
["",16,166,"",null,null,null,null,null,"",null,null,null,null,null,null,"","","","",null,""]
["",16,167,"",null,null,null,null,null,"",null,null,null,null,null,null,"","","","",null,""]
["",16,168,"",null,null,null,null,null,"",null,null,null,null,null,null,"","","","",null,""]
["",16,169,"",null,null,null,null,null,"",null,null,null,null,null,null,"","","","",null,""]
["",16,170,"",null,null,null,null,null,"",null,null,null,null,null,null,"","","","",null,""]
["",17,171,"",null,null,null,null,null,"",null,null,null,null,null,null,"","","","",null,""]
["",17,172,"",null,null,null,null,null,"",null,null,null,null,null,null,"","","","",null,""]
["",17,173,"",null,null,null,null,null,"",null,null,null,null,null,null,"","","","",null,""]
["",17,174,"",null,null,null,null,null,"",null,null,null,null,null,null,"","","","",null,""]
["",17,175,"",null,null,null,null,null,"",null,null,null,null,null,null,"","","","",null,""]
["",17,176,"",null,null,null,null,null,"",null,null,null,null,null,null,"","","","",null,""]
["",17,177,"",null,null,null,null,null,"",null,null,null,null,null,null,"","","","",null,""]
["",17,178,"",null,null,null,null,null,"",null,null,null,null,null,null,"","","","",null,""]
["",17,179,"",null,null,null,null,null,"",null,null,null,null,null,null,"","","","",null,""]
["",17,180,"",null,null,null,null,null,"",null,null,null,null,null,null,"","","","",null,""]
["",18,181,"",null,null,null,null,null,"",null,null,null,null,null,null,"","","","",null,""]
["",18,182,"",null,null,null,null,null,"",null,null,null,null,null,null,"","","","",null,""]
["",18,183,"",null,null,null,null,null,"",null,null,null,null,null,null,"","","","",null,""]
["",18,184,"",null,null,null,null,null,"",null,null,null,null,null,null,"","","","",null,""]
["",18,185,"",null,null,null,null,null,"",null,null,null,null,null,null,"","","","",null,""]
["",18,186,"",null,null,null,null,null,"",null,null,null,null,null,null,"","","","",null,""]
["",18,187,"",null,null,null,null,null,"",null,null,null,null,null,null,"","","","",null,""]
["",18,188,"",null,null,null,null,null,"",null,null,null,null,null,null,"","","","",null,""]
["",18,189,"",null,null,null,null,null,"",null,null,null,null,null,null,"","","","",null,""]
["",18,190,"",null,null,null,null,null,"",null,null,null,null,null,null,"","","","",null,""]
["",19,191,"",null,null,null,null,null,"",null,null,null,null,null,null,"","","","",null,""]
["",19,192,"",null,null,null,null,null,"",null,null,null,null,null,null,"","","","",null,""]
["",19,193,"",null,null,null,null,null,"",null,null,null,null,null,null,"","","","",null,""]
["",19,194,"",null,null,null,null,null,"",null,null,null,null,null,null,"","","","",null,""]
["",19,195,"",null,null,null,null,null,"",null,null,null,null,null,null,"","","","",null,""]
["",19,196,"",null,null,null,null,null,"",null,null,null,null,null,null,"","","","",null,""]
["",19,197,"",null,null,null,null,null,"",null,null,null,null,null,null,"","","","",null,""]
["",19,198,"",null,null,null,null,null,"",null,null,null,null,null,null,"","","","",null,""]
["",19,199,"",null,null,null,null,null,"",null,null,null,null,null,null,"","","","",null,""]
["",19,200,"",null,null,null,null,null,"",null,null,null,null,null,null,"","","","",null,""]
["",20,201,"",null,null,null,null,null,"",null,null,null,null,null,null,"","","","",null,""]
["",20,202,"",null,null,null,null,null,"",null,null,null,null,null,null,"","","","",null,""]
["",20,203,"",null,null,null,null,null,"",null,null,null,null,null,null,"","","","",null,""]
[{"$f":"IF(E197=\"\",\"\",B197)","v":""},20,204,{"$f":"IF(E197=\"\",\"\",ROW()-3)","v":""},null,null,null,null,null,{"$f":"IF(H197=\"\",\"\",ROUNDDOWN((H197+I197),-3))","v":""},null,null,null,null,null,null,{"$f":"IF(L197=0,\"\",\"70歳以上被保険者\")","v":""},{"$f":"IF(M197=0,\"\",\"二以上勤務者 \")","v":""},{"$f":"IF(N197=0,\"\",\"同一月内の賞与合算 \")","v":""},{"$f":"IF(N197=0,\"\",\"（  初回支払日： \")","v":""},null,{"$f":"IFERROR(J197/1000,\"\")","v":""}]
["",20,205,"",null,null,null,null,null,"",null,null,null,null,null,null,"","","","",null,""]
["",20,206,"",null,null,null,null,null,"",null,null,null,null,null,null,"","","","",null,""]
["",20,207,"",null,null,null,null,null,"",null,null,null,null,null,null,"","","","",null,""]
["",20,208,"",null,null,null,null,null,"",null,null,null,null,null,null,"","","","",null,""]
["",20,209,"",null,null,null,null,null,"",null,null,null,null,null,null,"","","","",null,""]
["",20,210,"",null,null,null,null,null,"",null,null,null,null,null,null,"","","","",null,""]
["",21,211,"",null,null,null,null,null,"",null,null,null,null,null,null,"","","","",null,""]
["",21,212,"",null,null,null,null,null,"",null,null,null,null,null,null,"","","","",null,""]
["",21,213,"",null,null,null,null,null,"",null,null,null,null,null,null,"","","","",null,""]
["",{"$f":"B197+1","v":21},214,"",null,null,null,null,null,"",null,null,null,null,null,null,"","","","",null,""]
["",21,215,"",null,null,null,null,null,"",null,null,null,null,null,null,"","","","",null,""]
["",21,216,"",null,null,null,null,null,"",null,null,null,null,null,null,"","","","",null,""]
["",21,217,"",null,null,null,null,null,"",null,null,null,null,null,null,"","","","",null,""]
["",21,218,"",null,null,null,null,null,"",null,null,null,null,null,null,"","","","",null,""]
["",21,219,"",null,null,null,null,null,"",null,null,null,null,null,null,"","","","",null,""]
["",21,220,"",null,null,null,null,null,"",null,null,null,null,null,null,"","","","",null,""]
["",22,221,"",null,null,null,null,null,"",null,null,null,null,null,null,"","","","",null,""]
["",22,222,"",null,null,null,null,null,"",null,null,null,null,null,null,"","","","",null,""]
["",22,223,"",null,null,null,null,null,"",null,null,null,null,null,null,"","","","",null,""]
["",22,224,"",null,null,null,null,null,"",null,null,null,null,null,null,"","","","",null,""]
["",22,225,"",null,null,null,null,null,"",null,null,null,null,null,null,"","","","",null,""]
["",22,226,"",null,null,null,null,null,"",null,null,null,null,null,null,"","","","",null,""]
["",22,227,"",null,null,null,null,null,"",null,null,null,null,null,null,"","","","",null,""]
["",22,228,"",null,null,null,null,null,"",null,null,null,null,null,null,"","","","",null,""]
["",22,229,"",null,null,null,null,null,"",null,null,null,null,null,null,"","","","",null,""]
["",22,230,"",null,null,null,null,null,"",null,null,null,null,null,null,"","","","",null,""]
["",23,231,"",null,null,null,null,null,"",null,null,null,null,null,null,"","","","",null,""]
["",23,232,"",null,null,null,null,null,"",null,null,null,null,null,null,"","","","",null,""]
["",23,233,"",null,null,null,null,null,"",null,null,null,null,null,null,"","","","",null,""]
["",23,234,"",null,null,null,null,null,"",null,null,null,null,null,null,"","","","",null,""]
["",23,235,"",null,null,null,null,null,"",null,null,null,null,null,null,"","","","",null,""]
["",23,236,"",null,null,null,null,null,"",null,null,null,null,null,null,"","","","",null,""]
["",23,237,"",null,null,null,null,null,"",null,null,null,null,null,null,"","","","",null,""]
["",23,238,"",null,null,null,null,null,"",null,null,null,null,null,null,"","","","",null,""]
["",23,239,"",null,null,null,null,null,"",null,null,null,null,null,null,"","","","",null,""]
["",23,240,"",null,null,null,null,null,"",null,null,null,null,null,null,"","","","",null,""]
["",24,241,"",null,null,null,null,null,"",null,null,null,null,null,null,"","","","",null,""]
["",24,242,"",null,null,null,null,null,"",null,null,null,null,null,null,"","","","",null,""]
["",24,243,"",null,null,null,null,null,"",null,null,null,null,null,null,"","","","",null,""]
["",24,244,"",null,null,null,null,null,"",null,null,null,null,null,null,"","","","",null,""]
["",24,245,"",null,null,null,null,null,"",null,null,null,null,null,null,"","","","",null,""]
["",24,246,"",null,null,null,null,null,"",null,null,null,null,null,null,"","","","",null,""]
["",24,247,"",null,null,null,null,null,"",null,null,null,null,null,null,"","","","",null,""]
["",24,248,"",null,null,null,null,null,"",null,null,null,null,null,null,"","","","",null,""]
["",24,249,"",null,null,null,null,null,"",null,null,null,null,null,null,"","","","",null,""]
["",24,250,"",null,null,null,null,null,"",null,null,null,null,null,null,"","","","",null,""]
["",25,251,"",null,null,null,null,null,"",null,null,null,null,null,null,"","","","",null,""]
["",25,252,"",null,null,null,null,null,"",null,null,null,null,null,null,"","","","",null,""]
["",25,253,"",null,null,null,null,null,"",null,null,null,null,null,null,"","","","",null,""]
["",25,254,"",null,null,null,null,null,"",null,null,null,null,null,null,"","","","",null,""]
["",25,255,"",null,null,null,null,null,"",null,null,null,null,null,null,"","","","",null,""]
["",25,256,"",null,null,null,null,null,"",null,null,null,null,null,null,"","","","",null,""]
["",25,257,"",null,null,null,null,null,"",null,null,null,null,null,null,"","","","",null,""]
["",25,258,"",null,null,null,null,null,"",null,null,null,null,null,null,"","","","",null,""]
["",25,259,"",null,null,null,null,null,"",null,null,null,null,null,null,"","","","",null,""]
["",25,260,"",null,null,null,null,null,"",null,null,null,null,null,null,"","","","",null,""]
["",26,261,"",null,null,null,null,null,"",null,null,null,null,null,null,"","","","",null,""]
["",26,262,"",null,null,null,null,null,"",null,null,null,null,null,null,"","","","",null,""]
["",26,263,"",null,null,null,null,null,"",null,null,null,null,null,null,"","","","",null,""]
["",26,264,"",null,null,null,null,null,"",null,null,null,null,null,null,"","","","",null,""]
["",26,265,"",null,null,null,null,null,"",null,null,null,null,null,null,"","","","",null,""]
["",26,266,"",null,null,null,null,null,"",null,null,null,null,null,null,"","","","",null,""]
["",26,267,"",null,null,null,null,null,"",null,null,null,null,null,null,"","","","",null,""]
[{"$f":"IF(E261=\"\",\"\",B261)","v":""},26,268,{"$f":"IF(E261=\"\",\"\",ROW()-3)","v":""},null,null,null,null,null,{"$f":"IF(H261=\"\",\"\",ROUNDDOWN((H261+I261),-3))","v":""},null,null,null,null,null,null,{"$f":"IF(L261=0,\"\",\"70歳以上被保険者\")","v":""},{"$f":"IF(M261=0,\"\",\"二以上勤務者 \")","v":""},{"$f":"IF(N261=0,\"\",\"同一月内の賞与合算 \")","v":""},{"$f":"IF(N261=0,\"\",\"（  初回支払日： \")","v":""},null,{"$f":"IFERROR(J261/1000,\"\")","v":""}]
["",26,269,"",null,null,null,null,null,"",null,null,null,null,null,null,"","","","",null,""]
["",26,270,"",null,null,null,null,null,"",null,null,null,null,null,null,"","","","",null,""]
["",27,271,"",null,null,null,null,null,"",null,null,null,null,null,null,"","","","",null,""]
["",27,272,"",null,null,null,null,null,"",null,null,null,null,null,null,"","","","",null,""]
["",27,273,"",null,null,null,null,null,"",null,null,null,null,null,null,"","","","",null,""]
["",27,274,"",null,null,null,null,null,"",null,null,null,null,null,null,"","","","",null,""]
["",27,275,"",null,null,null,null,null,"",null,null,null,null,null,null,"","","","",null,""]
["",27,276,"",null,null,null,null,null,"",null,null,null,null,null,null,"","","","",null,""]
["",27,277,"",null,null,null,null,null,"",null,null,null,null,null,null,"","","","",null,""]
["",{"$f":"B261+1","v":27},278,"",null,null,null,null,null,"",null,null,null,null,null,null,"","","","",null,""]
["",27,279,"",null,null,null,null,null,"",null,null,null,null,null,null,"","","","",null,""]
["",27,280,"",null,null,null,null,null,"",null,null,null,null,null,null,"","","","",null,""]
["",28,281,"",null,null,null,null,null,"",null,null,null,null,null,null,"","","","",null,""]
["",28,282,"",null,null,null,null,null,"",null,null,null,null,null,null,"","","","",null,""]
["",28,283,"",null,null,null,null,null,"",null,null,null,null,null,null,"","","","",null,""]
["",28,284,"",null,null,null,null,null,"",null,null,null,null,null,null,"","","","",null,""]
["",28,285,"",null,null,null,null,null,"",null,null,null,null,null,null,"","","","",null,""]
["",28,286,"",null,null,null,null,null,"",null,null,null,null,null,null,"","","","",null,""]
["",28,287,"",null,null,null,null,null,"",null,null,null,null,null,null,"","","","",null,""]
["",28,288,"",null,null,null,null,null,"",null,null,null,null,null,null,"","","","",null,""]
["",28,289,"",null,null,null,null,null,"",null,null,null,null,null,null,"","","","",null,""]
["",28,290,"",null,null,null,null,null,"",null,null,null,null,null,null,"","","","",null,""]
["",29,291,"",null,null,null,null,null,"",null,null,null,null,null,null,"","","","",null,""]
["",29,292,"",null,null,null,null,null,"",null,null,null,null,null,null,"","","","",null,""]
["",29,293,"",null,null,null,null,null,"",null,null,null,null,null,null,"","","","",null,""]
["",29,294,"",null,null,null,null,null,"",null,null,null,null,null,null,"","","","",null,""]
["",29,295,"",null,null,null,null,null,"",null,null,null,null,null,null,"","","","",null,""]
["",29,296,"",null,null,null,null,null,"",null,null,null,null,null,null,"","","","",null,""]
["",29,297,"",null,null,null,null,null,"",null,null,null,null,null,null,"","","","",null,""]
["",29,298,"",null,null,null,null,null,"",null,null,null,null,null,null,"","","","",null,""]
["",29,299,"",null,null,null,null,null,"",null,null,null,null,null,null,"","","","",null,""]
["",29,300,"",null,null,null,null,null,"",null,null,null,null,null,null,"","","","",null,""]
["",30,301,"",null,null,null,null,null,"",null,null,null,null,null,null,"","","","",null,""]
["",30,302,"",null,null,null,null,null,"",null,null,null,null,null,null,"","","","",null,""]
["",30,303,"",null,null,null,null,null,"",null,null,null,null,null,null,"","","","",null,""]
["",30,304,"",null,null,null,null,null,"",null,null,null,null,null,null,"","","","",null,""]
["",30,305,"",null,null,null,null,null,"",null,null,null,null,null,null,"","","","",null,""]
["",30,306,"",null,null,null,null,null,"",null,null,null,null,null,null,"","","","",null,""]
["",30,307,"",null,null,null,null,null,"",null,null,null,null,null,null,"","","","",null,""]
["",30,308,"",null,null,null,null,null,"",null,null,null,null,null,null,"","","","",null,""]
["",30,309,"",null,null,null,null,null,"",null,null,null,null,null,null,"","","","",null,""]
["",30,310,"",null,null,null,null,null,"",null,null,null,null,null,null,"","","","",null,""]